{"text_format":"1","workbook":"xlsx","n_sheets":3,"sheets":["Лист1","Лист2","Лист3"],"not_rendered":{"charts":0,"images":2,"macros":1,"external_links":0,"defined_names":0,"comments":0,"pivot_tables":0},"unopened":[],"bounds":{"document_bytes":16777216,"sheet_cells":100000,"rows_first":2000,"rows_last":500,"rows_between":2000,"halvings":0,"cell_chars":16384,"cell_head_chars":4096},"cells_cut":0,"cells_raw":0,"read":"whole","date_system":"1900"}

{"sheet":"Лист1","index":0,"n_rows":18,"n_cols":14,"rows_kept":18,"cut":false,"hidden":false,"merged":[]}
["Название обьекта","1","Тип прибора","Название прибора","Номер","Количество","Дата начала","Дата конца","Акты вып. работ","Акты допуска","Готов 100%"]
["МБОУ СШ №1","Отопление","Расходомер",null,null,null,null,null,null,null,null,null,{"$f":"IF(H2,\"Поверк\"&TEXT(TEXT(YEAR(H2)-YEAR(TODAY()),\"[>1]a\"),\"а в \\сле\\дующе\\м \\го\\ду;а про\\сро\\чена;а;и нет\"),\"Нет данных\")","v":"Нет данных"},{"$f":"IF(H2,IF(YEAR(H2)=YEAR(TODAY()),\"поверка\",IF(YEAR(H2)<YEAR(TODAY()),\"Поверка просрочена\",IF(YEAR(H2)=YEAR(TODAY()+366),\"поверка в следующем году\",\"нет поверки\"))),\"нет данных\")","v":"нет данных"}]
[null,null,"Датчики темп.",null,null,null,null,null,null,null,null,null,{"$f":"IF(H3,\"Поверк\"&TEXT(TEXT(YEAR(H3)-YEAR(TODAY()),\"[>1]a\"),\"а в \\сле\\дующе\\м \\го\\ду;а про\\сро\\чена;а;и нет\"),\"Нет данных\")","v":"Нет данных"},{"$f":"IF(H3,IF(YEAR(H3)=YEAR(TODAY()),\"поверка\",IF(YEAR(H3)<YEAR(TODAY()),\"Поверка просрочена\",IF(YEAR(H3)=YEAR(TODAY()+366),\"поверка в следующем году\",\"нет поверки\"))),\"нет данных\")","v":"нет данных"}]
[null,null,"Тепловычислитель","СПТ-961",11821,1,"2016-01-21","2020-01-21",null,null,null,null,"Поверка в следующем году","поверка в следующем году"]
[null,null,"Расходомер",null,null,null,null,null,null,null,null,null,"Нет данных","нет данных"]
[null,null,"Датчики темп.",null,null,null,null,null,null,null,null,null,"Нет данных","нет данных"]
[null,null,"Тепловычислитель",null,null,null,null,null,null,null,null,null,"Нет данных","нет данных"]
[null,null,"Расходомер",null,null,null,null,null,null,null,null,null,"Нет данных","нет данных"]
[null,null,"Тепловычислитель",null,null,null,null,null,null,null,null,null,"Нет данных","нет данных"]
["МБОУ №2 кор.№1",null,"Расходомер","Метран 300-ПР-50","983204 ,  983205",2,"2014-01-21","2018-01-21",null,null,null,null,"Поверка просрочена","Поверка просрочена"]
[null,null,"Датчики темп.","КТПТР-01 L= 80",6060,1,"2013-01-21","2017-01-21",null,null,null,null,"Поверка просрочена","Поверка просрочена"]
[null,null,"Тепловычислитель","СПТ-941.10",44270,1,"2015-03-21","2019-03-21",null,null,null,null,"Поверка","поверка"]
[null,null,"Тепловычислитель",null,null,null,"2015-01-21","2020-01-21",null,null,null,null,"Поверка в следующем году","поверка в следующем году"]
[null,"ГВС","Расходомер",null,null,null,"2015-01-21","2020-02-21",null,null,null,null,"Поверка в следующем году","поверка в следующем году"]
[null,null,"Датчики темп.",null,null,null,"2015-03-21","2019-03-21",null,null,null,null,"Поверка","поверка"]
[null,null,"Тепловычислитель",null,null,null,"2015-01-21","2021-03-10",null,null,null,null,"Поверки нет","нет поверки"]
[null,"ХВС","Расходомер",null,null,null,null,null,null,null,null,null,"Нет данных"]
[null,null,"Тепловычислитель",null,null,null,null,null,null,null,null,null,"Нет данных"," "]

{"sheet":"Лист2","index":1,"n_rows":0,"n_cols":0,"rows_kept":0,"cut":false,"hidden":false,"merged":[]}

{"sheet":"Лист3","index":2,"n_rows":0,"n_cols":0,"rows_kept":0,"cut":false,"hidden":false,"merged":[]}